[Event "*** Titled Tuesday Blitz"]
[Site "Chess.com"]
[Date "2021.03.02"]
[Round "8"]
[White "Federtiu"]
[Black "AryanTari"]
[Result "0-1"]
[WhiteElo "2645"]
[BlackElo "2891"]
[TimeControl "180+1"]
[EndTime "11:30:38 PST"]
[Termination "AryanTari won on time"]

1. e4 {[%clk 0:03:00.9]} 1... c6 {[%clk 0:02:49.5]} 2. d4 {[%clk 0:02:55.9]}
2... d5 {[%clk 0:02:49.5]} 3. e5 {[%clk 0:02:56.6]} 3... Bf5 {[%clk 0:02:49.5]}
4. Nf3 {[%clk 0:02:57]} 4... e6 {[%clk 0:02:49.9]} 5. Be2 {[%clk 0:02:57.7]}
5... Ne7 {[%clk 0:02:50]} 6. O-O {[%clk 0:02:56.7]} 6... c5 {[%clk 0:02:50.6]}
7. c4 {[%clk 0:02:54.7]} 7... Nbc6 {[%clk 0:02:47.1]} 8. dxc5 {[%clk 0:02:54.8]}
8... d4 {[%clk 0:02:47.3]} 9. Qb3 {[%clk 0:02:36.4]} 9... Qc8 {[%clk 0:02:37.8]}
10. Rd1 {[%clk 0:02:24.5]} 10... Ng6 {[%clk 0:02:36.6]} 11. Nxd4 {[%clk
0:02:07.4]} 11... Nxd4 {[%clk 0:02:36.2]} 12. Rxd4 {[%clk 0:02:07.8]} 12... Bxc5
{[%clk 0:02:36.9]} 13. Qb5+ {[%clk 0:02:06.7]} 13... Qc6 {[%clk 0:02:37.1]} 14.
Qxc6+ {[%clk 0:02:07.3]} 14... bxc6 {[%clk 0:02:38]} 15. Rd1 {[%clk 0:02:07.2]}
15... Nxe5 {[%clk 0:02:36.1]} 16. Nc3 {[%clk 0:02:02.5]} 16... O-O {[%clk
0:02:34.1]} 17. Bf4 {[%clk 0:02:01.7]} 17... f6 {[%clk 0:02:16.8]} 18. Na4
{[%clk 0:01:41.7]} 18... Be7 {[%clk 0:02:13.9]} 19. b3 {[%clk 0:01:39.5]} 19...
Rfd8 {[%clk 0:01:50.7]} 20. Be3 {[%clk 0:01:11.5]} 20... a5 {[%clk 0:01:23.2]}
21. Bb6 {[%clk 0:01:06.2]} 21... Rxd1+ {[%clk 0:01:10.9]} 22. Rxd1 {[%clk
0:01:07.1]} 22... g5 {[%clk 0:01:11.3]} 23. h3 {[%clk 0:00:57]} 23... Kf7 {[%clk
0:01:07.5]} 24. Bc7 {[%clk 0:00:52.4]} 24... Ra7 {[%clk 0:00:54.6]} 25. Bb6
{[%clk 0:00:16.6]} 25... Ra8 {[%clk 0:00:54.9]} 26. Bh5+ {[%clk 0:00:12.4]}
26... Kf8 {[%clk 0:00:37.6]} 27. Bc7 {[%clk 0:00:09.4]} 27... Ra7 {[%clk
0:00:37.5]} 28. Bb8 {[%clk 0:00:07.5]} 28... Rb7 {[%clk 0:00:33.5]} 29. Bd6
{[%clk 0:00:06.1]} 29... Bxd6 {[%clk 0:00:33.4]} 30. Rxd6 {[%clk 0:00:06.8]}
30... Ke7 {[%clk 0:00:32.1]} 31. Rd2 {[%clk 0:00:06.5]} 31... Rb4 {[%clk
0:00:19.4]} 32. Be2 {[%clk 0:00:02.9]} 32... Nd7 {[%clk 0:00:15.9]} 33. Kf1
{[%clk 0:00:02.5]} 33... Bg6 {[%clk 0:00:15.1]} 34. Ke1 {[%clk 0:00:02.3]} 34...
h5 {[%clk 0:00:13.8]} 35. Kd1 {[%clk 0:00:02.6]} 35... h4 {[%clk 0:00:14]} 36.
Kc1 {[%clk 0:00:03.2]} 36... Rb8 {[%clk 0:00:14.3]} 37. Kb2 {[%clk 0:00:03.6]}
37... Ne5 {[%clk 0:00:14.2]} 38. Kc3 {[%clk 0:00:03.8]} 38... Be4 {[%clk
0:00:13.8]} 39. f3 {[%clk 0:00:03.6]} 39... Bf5 {[%clk 0:00:14.4]} 40. Nc5
{[%clk 0:00:04.1]} 40... Rb6 {[%clk 0:00:09.7]} 41. a3 {[%clk 0:00:04.5]} 41...
Rb8 {[%clk 0:00:09.9]} 42. Bf1 {[%clk 0:00:04.2]} 42... Ke8 {[%clk 0:00:08.4]}
43. Be2 {[%clk 0:00:04.7]} 43... Ke7 {[%clk 0:00:07.7]} 44. Rd4 {[%clk
0:00:05.4]} 44... Bb1 {[%clk 0:00:07.1]} 45. f4 {[%clk 0:00:04.4]} 45... gxf4
{[%clk 0:00:06.8]} 46. Rxf4 {[%clk 0:00:05.3]} 46... Rg8 {[%clk 0:00:07.4]} 47.
Rxh4 {[%clk 0:00:02]} 47... Rxg2 {[%clk 0:00:07.2]} 48. Bg4 {[%clk 0:00:02]}
48... Rg3+ {[%clk 0:00:06]} 49. Kd2 {[%clk 0:00:01.3]} 49... f5 {[%clk
0:00:04.1]} 0-1

[Event "*** Titled Tuesday Blitz"]
[Site "Chess.com"]
[Date "2021.03.02"]
[Round "8"]
[White "Gabix_94"]
[Black "TST2014"]
[Result "1-0"]
[WhiteElo "2814"]
[BlackElo "2630"]
[TimeControl "180+1"]
[EndTime "11:30:39 PST"]
[Termination "Gabix_94 won by resignation"]

1. e4 {[%clk 0:03:00.9]} 1... c5 {[%clk 0:02:58.8]} 2. Nf3 {[%clk 0:03:00]} 2...
Nc6 {[%clk 0:02:58.6]} 3. Nc3 {[%clk 0:03:00]} 3... d6 {[%clk 0:02:58.4]} 4. d4
{[%clk 0:03:00]} 4... cxd4 {[%clk 0:02:58.6]} 5. Nxd4 {[%clk 0:03:00.9]} 5...
Nf6 {[%clk 0:02:58.9]} 6. Be2 {[%clk 0:03:01]} 6... e5 {[%clk 0:02:58.8]} 7. Nb3
{[%clk 0:03:01]} 7... Be7 {[%clk 0:02:58.5]} 8. g4 {[%clk 0:03:00.8]} 8... h6
{[%clk 0:02:42.7]} 9. Rg1 {[%clk 0:02:55.8]} 9... Be6 {[%clk 0:02:38.2]} 10. g5
{[%clk 0:02:53.9]} 10... hxg5 {[%clk 0:02:37.3]} 11. Bxg5 {[%clk 0:02:54.8]}
11... Rxh2 {[%clk 0:02:33.7]} 12. Qd2 {[%clk 0:02:52.8]} 12... Qb6 {[%clk
0:02:22]} 13. Be3 {[%clk 0:02:51.2]} 13... Qc7 {[%clk 0:02:18.3]} 14. O-O-O
{[%clk 0:02:50]} 14... g6 {[%clk 0:02:07.9]} 15. Nb5 {[%clk 0:02:46.4]} 15...
Qd7 {[%clk 0:02:02.3]} 16. Bf3 {[%clk 0:02:38.2]} 16... Ng4 {[%clk 0:01:40.6]}
17. Rxg4 {[%clk 0:02:19.3]} 17... Bxg4 {[%clk 0:01:39.5]} 18. Bxg4 {[%clk
0:02:20.2]} 18... Qxg4 {[%clk 0:01:38.4]} 19. Nc7+ {[%clk 0:02:20.3]} 19... Kf8
{[%clk 0:01:34.1]} 20. Nxa8 {[%clk 0:02:20.3]} 20... Qc8 {[%clk 0:01:33.9]} 21.
Bg5 {[%clk 0:02:07.6]} 21... f6 {[%clk 0:01:27.9]} 22. Bh6+ {[%clk 0:02:01.7]}
22... Kg8 {[%clk 0:01:16.2]} 23. Rg1 {[%clk 0:02:02]} 23... Kh7 {[%clk 0:01:14]}
24. Be3 {[%clk 0:01:47.1]} 24... Qxa8 {[%clk 0:01:13.7]} 25. Qd5 {[%clk
0:01:45.5]} 25... Qg8 {[%clk 0:01:06]} 26. Qb5 {[%clk 0:01:45.6]} 26... Qc8
{[%clk 0:00:59.6]} 27. Qd5 {[%clk 0:01:40.6]} 27... Kg7 {[%clk 0:00:53.6]} 28.
Nd2 {[%clk 0:01:38.3]} 28... Nb4 {[%clk 0:00:48.6]} 29. Qb3 {[%clk 0:01:37.1]}
29... a5 {[%clk 0:00:47.2]} 30. a3 {[%clk 0:01:36.1]} 30... Nc6 {[%clk
0:00:46.7]} 31. Nc4 {[%clk 0:01:35.1]} 31... Nd4 {[%clk 0:00:46.2]} 32. Bxd4
{[%clk 0:01:34.2]} 32... exd4 {[%clk 0:00:47.1]} 33. Nb6 {[%clk 0:01:26]} 33...
Qh3 {[%clk 0:00:43.4]} 34. Qxh3 {[%clk 0:00:52.9]} 34... Rxh3 {[%clk 0:00:44.3]}
35. Nd5 {[%clk 0:00:53.7]} 35... Bd8 {[%clk 0:00:42.5]} 36. Nf4 {[%clk
0:00:53.8]} 36... Rh6 {[%clk 0:00:35.9]} 37. Ne6+ {[%clk 0:00:53.8]} 37... Kf7
{[%clk 0:00:33.6]} 38. Nxd8+ {[%clk 0:00:54.7]} 38... Ke7 {[%clk 0:00:33.6]} 39.
Nxb7 {[%clk 0:00:55.3]} 39... a4 {[%clk 0:00:32.9]} 40. Na5 {[%clk 0:00:55]}
40... g5 {[%clk 0:00:32.2]} 41. Nc6+ {[%clk 0:00:54.8]} 41... Kf7 {[%clk
0:00:32]} 42. Nxd4 {[%clk 0:00:55.7]} 42... Rh2 {[%clk 0:00:31.6]} 43. f3 {[%clk
0:00:55.3]} 43... Rf2 {[%clk 0:00:31.3]} 44. Kd1 {[%clk 0:00:54.1]} 44... Kg6
{[%clk 0:00:29.4]} 45. Ke1 {[%clk 0:00:53.9]} 45... Rh2 {[%clk 0:00:29.6]} 46.
Ne2 {[%clk 0:00:53.9]} 46... Kf7 {[%clk 0:00:26.1]} 47. Kd2 {[%clk 0:00:53.8]}
47... Ke6 {[%clk 0:00:25.4]} 48. Kd3 {[%clk 0:00:53.3]} 48... d5 {[%clk
0:00:24.8]} 49. exd5+ {[%clk 0:00:52.9]} 49... Kxd5 {[%clk 0:00:25.1]} 50. Nc3+
{[%clk 0:00:53.8]} 50... Ke5 {[%clk 0:00:25]} 51. Rg4 {[%clk 0:00:52.4]} 51...
Rh3 {[%clk 0:00:19.6]} 52. Ke3 {[%clk 0:00:50.7]} 52... Rh2 {[%clk 0:00:19.2]}
53. Re4+ {[%clk 0:00:50.1]} 53... Kf5 {[%clk 0:00:19.2]} 54. Ne2 {[%clk
0:00:50.6]} 54... Rh3 {[%clk 0:00:17.6]} 55. Rxa4 {[%clk 0:00:50.5]} 55... Kg6
{[%clk 0:00:17.7]} 56. Rc4 {[%clk 0:00:49.1]} 56... f5 {[%clk 0:00:18]} 57. a4
{[%clk 0:00:49.2]} 57... g4 {[%clk 0:00:18.2]} 58. Nf4+ {[%clk 0:00:49.5]} 58...
Kg5 {[%clk 0:00:16]} 59. Nxh3+ {[%clk 0:00:49.6]} 59... gxh3 {[%clk 0:00:16.9]}
60. Kf2 {[%clk 0:00:49.4]} 60... f4 {[%clk 0:00:16.2]} 61. Rc8 {[%clk
0:00:48.1]} 61... h2 {[%clk 0:00:09.9]} 62. Rh8 {[%clk 0:00:47.6]} 62... h1=N+
{[%clk 0:00:09.7]} 63. Rxh1 {[%clk 0:00:48]} 63... Kf5 {[%clk 0:00:09.8]} 64.
Re1 {[%clk 0:00:46.6]} 64... Kg5 {[%clk 0:00:09.9]} 65. b4 {[%clk 0:00:47]}
65... Kh4 {[%clk 0:00:10.8]} 66. c4 {[%clk 0:00:47.3]} 66... Kh3 {[%clk
0:00:11.7]} 67. a5 {[%clk 0:00:47.4]} 67... Kh2 {[%clk 0:00:12.6]} 68. b5 {[%clk
0:00:47.7]} 68... Kh3 {[%clk 0:00:13]} 69. c5 {[%clk 0:00:48.1]} 69... Kh2
{[%clk 0:00:13.9]} 70. a6 {[%clk 0:00:48.5]} 70... Kh3 {[%clk 0:00:14.8]} 71. b6
{[%clk 0:00:49]} 71... Kh4 {[%clk 0:00:15.7]} 72. c6 {[%clk 0:00:49.5]} 72...
Kg5 {[%clk 0:00:16.6]} 73. a7 {[%clk 0:00:50.1]} 73... Kf6 {[%clk 0:00:17.5]}
74. b7 {[%clk 0:00:50.4]} 74... Kg7 {[%clk 0:00:18.4]} 75. c7 {[%clk 0:00:50.9]}
75... Kf7 {[%clk 0:00:19.3]} 76. a8=Q {[%clk 0:00:50.7]} 76... Kf6 {[%clk
0:00:20.2]} 1-0

[Event "*** Titled Tuesday Blitz"]
[Site "Chess.com"]
[Date "2021.03.02"]
[Round "8"]
[White "Klavdia_Nik"]
[Black "night_player"]
[Result "1/2-1/2"]
[WhiteElo "2063"]
[BlackElo "2174"]
[TimeControl "180+1"]
[EndTime "11:30:45 PST"]
[Termination "Game drawn by repetition"]

1. Nf3 {[%clk 0:03:00.9]} 1... f5 {[%clk 0:02:58.5]} 2. c4 {[%clk 0:03:01.2]}
2... d6 {[%clk 0:02:59]} 3. d4 {[%clk 0:03:00.2]} 3... Nf6 {[%clk 0:02:58.8]} 4.
Nc3 {[%clk 0:02:59.1]} 4... g6 {[%clk 0:02:59.3]} 5. d5 {[%clk 0:02:55.5]} 5...
Bg7 {[%clk 0:02:52.8]} 6. Nd4 {[%clk 0:02:51.5]} 6... O-O {[%clk 0:02:51.4]} 7.
g3 {[%clk 0:02:51.7]} 7... Na6 {[%clk 0:02:43.7]} 8. Bg2 {[%clk 0:02:49]} 8...
Nc5 {[%clk 0:02:16.3]} 9. b4 {[%clk 0:02:37.8]} 9... Nce4 {[%clk 0:02:14.9]} 10.
Bb2 {[%clk 0:02:37.9]} 10... Nxc3 {[%clk 0:01:52.4]} 11. Bxc3 {[%clk 0:02:36.7]}
11... e5 {[%clk 0:01:45.3]} 12. dxe6 {[%clk 0:02:34.6]} 12... c6 {[%clk
0:01:42.8]} 13. O-O {[%clk 0:02:29]} 13... Qe7 {[%clk 0:01:43.1]} 14. Qc2 {[%clk
0:01:52.5]} 14... Bxe6 {[%clk 0:01:40.8]} 15. Nxe6 {[%clk 0:01:51.7]} 15... Qxe6
{[%clk 0:01:40.1]} 16. Bb2 {[%clk 0:01:49.3]} 16... Rfe8 {[%clk 0:01:35.7]} 17.
e3 {[%clk 0:01:47.7]} 17... Ne4 {[%clk 0:01:29.6]} 18. Bxg7 {[%clk 0:01:33.6]}
18... Kxg7 {[%clk 0:01:28.7]} 19. Rfd1 {[%clk 0:01:27.4]} 19... Rad8 {[%clk
0:01:22.9]} 20. Rac1 {[%clk 0:01:26.8]} 20... d5 {[%clk 0:01:19.2]} 21. cxd5
{[%clk 0:01:06.3]} 21... Rxd5 {[%clk 0:01:16]} 22. Rxd5 {[%clk 0:01:05.8]} 22...
Qxd5 {[%clk 0:01:14.7]} 23. Rd1 {[%clk 0:01:02.9]} 23... Qe6 {[%clk 0:01:13.8]}
24. h4 {[%clk 0:00:55.7]} 24... Re7 {[%clk 0:01:07.7]} 25. a4 {[%clk 0:00:55.5]}
25... Nf6 {[%clk 0:00:54.4]} 26. Qc3 {[%clk 0:00:50.5]} 26... Rd7 {[%clk
0:00:53.6]} 27. Rd4 {[%clk 0:00:38.3]} 27... Rxd4 {[%clk 0:00:46.2]} 28. Qxd4
{[%clk 0:00:37.9]} 28... Qd7 {[%clk 0:00:46.7]} 29. Qxa7 {[%clk 0:00:34.2]}
29... Qe7 {[%clk 0:00:29.3]} 30. Qd4 {[%clk 0:00:31.5]} 30... Kf7 {[%clk
0:00:27]} 31. Bf3 {[%clk 0:00:30.9]} 31... h6 {[%clk 0:00:23.7]} 32. Kg2 {[%clk
0:00:27.6]} 32... g5 {[%clk 0:00:21.2]} 33. hxg5 {[%clk 0:00:26.8]} 33... hxg5
{[%clk 0:00:22.1]} 34. b5 {[%clk 0:00:19.5]} 34... g4 {[%clk 0:00:21.1]} 35. Be2
{[%clk 0:00:18.9]} 35... cxb5 {[%clk 0:00:18.5]} 36. axb5 {[%clk 0:00:17.6]}
36... Qe4+ {[%clk 0:00:18.6]} 37. Qxe4 {[%clk 0:00:17]} 37... Nxe4 {[%clk
0:00:19.5]} 38. Bc4+ {[%clk 0:00:15.9]} 38... Ke7 {[%clk 0:00:19.4]} 39. Bd5
{[%clk 0:00:16.1]} 39... Nc5 {[%clk 0:00:18.5]} 40. f3 {[%clk 0:00:14.8]} 40...
gxf3+ {[%clk 0:00:16.5]} 41. Kxf3 {[%clk 0:00:14.1]} 41... b6 {[%clk 0:00:17.4]}
42. g4 {[%clk 0:00:12.7]} 42... fxg4+ {[%clk 0:00:17.2]} 43. Kxg4 {[%clk
0:00:13.3]} 43... Kd6 {[%clk 0:00:17.7]} 44. e4 {[%clk 0:00:11.2]} 44... Ke5
{[%clk 0:00:16.9]} 45. Bc6 {[%clk 0:00:11]} 45... Nxe4 {[%clk 0:00:16.7]} 46.
Kf3 {[%clk 0:00:10.2]} 46... Nd6 {[%clk 0:00:13.7]} 47. Ke3 {[%clk 0:00:10.1]}
47... Nf5+ {[%clk 0:00:11.3]} 48. Kd3 {[%clk 0:00:10]} 48... Kd6 {[%clk
0:00:12.2]} 49. Kc4 {[%clk 0:00:09.6]} 49... Ne3+ {[%clk 0:00:11.8]} 50. Kd4
{[%clk 0:00:09.6]} 50... Nc2+ {[%clk 0:00:10.2]} 51. Kc3 {[%clk 0:00:09]} 51...
Ne3 {[%clk 0:00:09.6]} 52. Kd4 {[%clk 0:00:09.2]} 52... Nf5+ {[%clk 0:00:09.3]}
53. Kc4 {[%clk 0:00:08.7]} 53... Ne7 {[%clk 0:00:09.6]} 54. Be8 {[%clk
0:00:07.6]} 54... Nf5 {[%clk 0:00:07.7]} 55. Bc6 {[%clk 0:00:06.3]} 1/2-1/2

[Event "*** Titled Tuesday Blitz"]
[Site "Chess.com"]
[Date "2021.03.02"]
[Round "8"]
[White "andrzej"]
[Black "AldokhinIvan"]
[Result "0-1"]
[WhiteElo "2363"]
[BlackElo "2526"]
[TimeControl "180+1"]
[EndTime "11:30:46 PST"]
[Termination "AldokhinIvan won on time"]

1. e4 {[%clk 0:03:00]} 1... c5 {[%clk 0:03:00.1]} 2. Nc3 {[%clk 0:02:59.6]} 2...
e6 {[%clk 0:02:58.1]} 3. f4 {[%clk 0:02:55.5]} 3... d5 {[%clk 0:02:55.4]} 4. Nf3
{[%clk 0:02:55]} 4... d4 {[%clk 0:02:53.2]} 5. Bb5+ {[%clk 0:02:54.9]} 5... Bd7
{[%clk 0:02:49]} 6. Bxd7+ {[%clk 0:02:52]} 6... Qxd7 {[%clk 0:02:47.7]} 7. Ne2
{[%clk 0:02:43.7]} 7... d3 {[%clk 0:02:46.7]} 8. cxd3 {[%clk 0:02:43.2]} 8...
Nc6 {[%clk 0:02:43.4]} 9. d4 {[%clk 0:02:30]} 9... O-O-O {[%clk 0:02:23.7]} 10.
O-O {[%clk 0:02:23.4]} 10... Nf6 {[%clk 0:02:22.7]} 11. d3 {[%clk 0:02:23]}
11... Kb8 {[%clk 0:02:11.8]} 12. Bd2 {[%clk 0:02:19.8]} 12... cxd4 {[%clk
0:02:06.5]} 13. Qa4 {[%clk 0:02:05.8]} 13... Bc5 {[%clk 0:02:03]} 14. Rfc1
{[%clk 0:02:05]} 14... Bb6 {[%clk 0:02:00.4]} 15. Kh1 {[%clk 0:01:30.9]} 15...
Ng4 {[%clk 0:01:59.5]} 16. Be1 {[%clk 0:01:28.4]} 16... f5 {[%clk 0:01:54.9]}
17. e5 {[%clk 0:01:20.7]} 17... g5 {[%clk 0:01:25]} 18. Nxg5 {[%clk 0:01:14.6]}
18... h6 {[%clk 0:01:14.1]} 19. Nf3 {[%clk 0:01:14]} 19... Rhg8 {[%clk
0:01:13.8]} 20. Bh4 {[%clk 0:01:06.2]} 20... Rde8 {[%clk 0:00:49.8]} 21. b4
{[%clk 0:00:56.1]} 21... Ne3 {[%clk 0:00:45.6]} 22. b5 {[%clk 0:00:54.5]} 22...
Nxg2 {[%clk 0:00:37.6]} 23. bxc6 {[%clk 0:00:50]} 23... Qd5 {[%clk 0:00:37.8]}
24. c7+ {[%clk 0:00:33.2]} 24... Kc8 {[%clk 0:00:32.2]} 25. Neg1 {[%clk
0:00:14.5]} 25... Nxh4 {[%clk 0:00:30]} 26. Qd1 {[%clk 0:00:14]} 26... Rxg1+
{[%clk 0:00:27]} 27. Kxg1 {[%clk 0:00:14.3]} 27... Nxf3+ {[%clk 0:00:20.2]} 28.
Kf2 {[%clk 0:00:14.3]} 28... Nxe5 {[%clk 0:00:12.1]} 29. fxe5 {[%clk 0:00:10.6]}
29... Qxe5 {[%clk 0:00:12.4]} 30. Qf3 {[%clk 0:00:10.6]} 30... Qxh2+ {[%clk
0:00:11.8]} 31. Qg2 {[%clk 0:00:11]} 31... Qf4+ {[%clk 0:00:11.8]} 32. Qf3
{[%clk 0:00:11.2]} 32... Qd2+ {[%clk 0:00:11.5]} 33. Qe2 {[%clk 0:00:10.5]}
33... Qe3+ {[%clk 0:00:11.6]} 34. Qxe3 {[%clk 0:00:08.6]} 34... dxe3+ {[%clk
0:00:12.5]} 35. Kf3 {[%clk 0:00:09.3]} 35... Re7 {[%clk 0:00:11.4]} 36. Rh1
{[%clk 0:00:07.7]} 36... Kxc7 {[%clk 0:00:10.3]} 37. Rxh6 {[%clk 0:00:07.4]}
37... Kd6 {[%clk 0:00:10.8]} 38. a4 {[%clk 0:00:06.3]} 38... Bd4 {[%clk
0:00:07.8]} 39. Rb1 {[%clk 0:00:06.1]} 39... Rc7 {[%clk 0:00:07.8]} 40. Rb4
{[%clk 0:00:04.5]} 40... Kd5 {[%clk 0:00:07.8]} 41. Rb5+ {[%clk 0:00:03.8]}
41... Kd6 {[%clk 0:00:06.4]} 42. Rb4 {[%clk 0:00:04.2]} 42... Kd5 {[%clk
0:00:06.5]} 43. Rb5+ {[%clk 0:00:04.7]} 43... Bc5 {[%clk 0:00:06.8]} 44. d4
{[%clk 0:00:03]} 44... Kxd4 {[%clk 0:00:06]} 45. Rxe6 {[%clk 0:00:03.5]} 45...
Kc4 {[%clk 0:00:03.9]} 46. Re5 {[%clk 0:00:02]} 46... b6 {[%clk 0:00:04.1]} 47.
Rxf5 {[%clk 0:00:01.9]} 47... Rd7 {[%clk 0:00:03.8]} 0-1

[Event "*** Titled Tuesday Blitz"]
[Site "Chess.com"]
[Date "2021.03.02"]
[Round "8"]
[White "TimKett"]
[Black "urutodo"]
[Result "0-1"]
[WhiteElo "2178"]
[BlackElo "2302"]
[TimeControl "180+1"]
[EndTime "11:30:54 PST"]
[Termination "urutodo won on time"]

1. e4 {[%clk 0:03:00.9]} 1... c6 {[%clk 0:03:00.9]} 2. d4 {[%clk 0:03:00.4]}
2... d5 {[%clk 0:03:01.8]} 3. e5 {[%clk 0:03:00.4]} 3... Bf5 {[%clk 0:03:01.3]}
4. Nc3 {[%clk 0:03:00.4]} 4... e6 {[%clk 0:03:01.3]} 5. g4 {[%clk 0:03:00.8]}
5... Bg6 {[%clk 0:03:01.5]} 6. Nge2 {[%clk 0:03:01.3]} 6... c5 {[%clk
0:03:01.2]} 7. h4 {[%clk 0:02:59.9]} 7... h5 {[%clk 0:03:01.3]} 8. Nf4 {[%clk
0:02:59]} 8... Bh7 {[%clk 0:03:01.1]} 9. g5 {[%clk 0:02:59.4]} 9... Nc6 {[%clk
0:02:57.6]} 10. Bb5 {[%clk 0:02:58.7]} 10... Qb6 {[%clk 0:02:39.7]} 11. Be3
{[%clk 0:02:51.5]} 11... O-O-O {[%clk 0:02:24.1]} 12. Bxc6 {[%clk 0:02:28.1]}
12... Qxc6 {[%clk 0:02:20.4]} 13. Qd2 {[%clk 0:02:02]} 13... Ne7 {[%clk
0:02:08.5]} 14. O-O-O {[%clk 0:01:56.5]} 14... Nf5 {[%clk 0:02:08.6]} 15. Rh3
{[%clk 0:01:53]} 15... cxd4 {[%clk 0:02:01.3]} 16. Bxd4 {[%clk 0:01:52.6]} 16...
Nxd4 {[%clk 0:01:50.6]} 17. Qxd4 {[%clk 0:01:52.6]} 17... Bc5 {[%clk 0:01:50.9]}
18. Qd2 {[%clk 0:01:27.5]} 18... Bf5 {[%clk 0:01:50.7]} 19. Rg3 {[%clk
0:01:22.6]} 19... d4 {[%clk 0:01:35.2]} 20. Nce2 {[%clk 0:01:20.9]} 20... Bb4
{[%clk 0:01:26]} 21. c3 {[%clk 0:00:50.8]} 21... dxc3 {[%clk 0:01:23.2]} 22.
Rxc3 {[%clk 0:00:46.5]} 22... Bxc3 {[%clk 0:01:16.4]} 23. Qxc3 {[%clk
0:00:44.5]} 23... Rxd1+ {[%clk 0:01:14.8]} 24. Kxd1 {[%clk 0:00:44.6]} 24...
Rd8+ {[%clk 0:01:13.8]} 25. Kc1 {[%clk 0:00:43]} 25... Qxc3+ {[%clk 0:01:06.2]}
26. bxc3 {[%clk 0:00:43.2]} 26... Bg4 {[%clk 0:00:53.9]} 27. Nd4 {[%clk
0:00:42.2]} 27... a6 {[%clk 0:00:46.1]} 28. Kd2 {[%clk 0:00:42.4]} 28... g6
{[%clk 0:00:42]} 29. Ke3 {[%clk 0:00:42]} 29... Kc7 {[%clk 0:00:41.2]} 30. f3
{[%clk 0:00:29.5]} 30... Bf5 {[%clk 0:00:41.1]} 31. Nxf5 {[%clk 0:00:29.7]}
31... exf5 {[%clk 0:00:41.4]} 32. e6 {[%clk 0:00:25]} 32... Re8 {[%clk
0:00:41.1]} 33. Kd4 {[%clk 0:00:25.4]} 33... fxe6 {[%clk 0:00:28.2]} 34. Ke5
{[%clk 0:00:25.7]} 34... Kd7 {[%clk 0:00:20.4]} 35. Nxg6 {[%clk 0:00:25.2]}
35... Rc8 {[%clk 0:00:20.9]} 36. Nf4 {[%clk 0:00:22.7]} 36... Rxc3 {[%clk
0:00:19.9]} 37. Nxh5 {[%clk 0:00:22.6]} 37... Rxf3 {[%clk 0:00:19.3]} 38. Nf6+
{[%clk 0:00:23.2]} 38... Ke7 {[%clk 0:00:18.5]} 39. h5 {[%clk 0:00:19.4]} 39...
Re3+ {[%clk 0:00:15.3]} 40. Kf4 {[%clk 0:00:18.6]} 40... Rh3 {[%clk 0:00:15.3]}
41. Ng8+ {[%clk 0:00:14.8]} 41... Kf7 {[%clk 0:00:13.9]} 42. Nf6 {[%clk
0:00:13.9]} 42... Rh1 {[%clk 0:00:11.9]} 43. Kg3 {[%clk 0:00:09.8]} 43... e5
{[%clk 0:00:10.5]} 44. Kg2 {[%clk 0:00:10.1]} 44... Ra1 {[%clk 0:00:10.2]} 45.
h6 {[%clk 0:00:10.2]} 45... Rxa2+ {[%clk 0:00:11.1]} 46. Kh3 {[%clk 0:00:09.6]}
46... Kg6 {[%clk 0:00:12]} 47. h7 {[%clk 0:00:08.7]} 47... Ra3+ {[%clk
0:00:12.9]} 48. Kh4 {[%clk 0:00:08.4]} 48... Ra4+ {[%clk 0:00:11.4]} 49. Kh3
{[%clk 0:00:08.1]} 49... Kg7 {[%clk 0:00:12.3]} 50. g6 {[%clk 0:00:07.7]} 50...
Ra3+ {[%clk 0:00:10.8]} 51. Kh4 {[%clk 0:00:07.4]} 51... Ra4+ {[%clk 0:00:08.3]}
52. Kh5 {[%clk 0:00:07.3]} 52... Ra1 {[%clk 0:00:08.2]} 53. Ne8+ {[%clk
0:00:07.2]} 53... Kh8 {[%clk 0:00:08.2]} 54. Kg5 {[%clk 0:00:05.8]} 54... f4
{[%clk 0:00:07.7]} 55. Kf6 {[%clk 0:00:03.4]} 55... Rg1 {[%clk 0:00:08.2]} 56.
g7+ {[%clk 0:00:02.7]} 56... Rxg7 {[%clk 0:00:08.2]} 57. Nxg7 {[%clk 0:00:02.9]}
57... f3 {[%clk 0:00:09.1]} 58. Kg6 {[%clk 0:00:02.1]} 58... f2 {[%clk
0:00:07.8]} 0-1